fUST/lending_fUST_20250615
["ID","MTS","AMOUNT","RATE_DAILY","PERIOD"]
[365860491,1749965440035,-420.0,0.00022191,4]
[365860492,1749965440044,-402.99768373,0.00022191,4]
[365860493,1749965440054,-406.06356474,0.00022191,4]
[365860494,1749965440063,-460.0,0.00022191,4]
[365860495,1749965440073,-460.0,0.00022191,4]
[365860496,1749965440083,-400.0,0.00022191,4]
[365860497,1749965440092,-408.037127,0.00022191,4]
[365860498,1749965440102,-400.0,0.00022191,4]
[365860499,1749965440112,-280.32168964,0.00022191,4]
[365860500,1749965440121,-460.0,0.00022191,4]
[365860501,1749965440131,-460.0,0.00022191,4]
[365860502,1749965440140,-460.0,0.00022191,4]
[365860503,1749965440149,-429.15715305,0.00022191,4]
[365860504,1749965440159,-400.0,0.00022191,4]
[365860505,1749965440168,-460.0,0.00022191,4]
[365860507,1749965440178,-400.0,0.00022191,4]
[365860508,1749965440187,-480.5108392,0.00022191,4]
[365860509,1749965440196,-171.25926654,0.00022191,4]
[365860510,1749965440205,-440.0,0.00022191,4]
[365860511,1749965440214,-380.0,0.00022191,4]
[365860512,1749965440223,-400.0,0.00022191,4]
[365860513,1749965440232,-460.0,0.00022191,4]
[365860514,1749965440242,-460.0,0.00022191,4]
[365860515,1749965440252,-460.0,0.00022191,4]
[365860516,1749965440262,-172.99714916,0.00022191,4]
[365860518,1749965440272,-185.0265787,0.00022191,4]
[365860519,1749965440283,-430.0,0.00022191,4]
[365860521,1749965440292,-460.0,0.00022191,4]
[365860523,1749965440302,-400.0,0.00022191,4]
[365860525,1749965440312,-613.75,0.00022191,4]
[365860527,1749965440322,-582.87,0.00022191,4]
[365860529,1749965440331,-460.0,0.00022191,4]
[365860531,1749965440342,-460.0,0.00022191,4]
[365860533,1749965440351,-460.0,0.00022191,4]
[365860535,1749965440360,-420.0,0.00022191,4]
[365860536,1749965440370,-406.09893897,0.00022191,4]
[365860537,1749965440379,-400.0,0.00022191,4]
[365860538,1749965440388,-826.12,0.00022191,4]
[365860539,1749965440398,-409.41340105,0.00022191,4]
[365860540,1749965440407,-460.0,0.00022191,4]
[365860541,1749965440416,-460.0,0.00022191,4]
[365860542,1749965440425,-309.28647041,0.00022191,4]
[365860543,1749965440434,-410.25958448,0.00022191,4]
[365860544,1749965440444,-400.0,0.00022191,4]
[365860545,1749965440453,-482.38024656,0.00022191,4]
[365860546,1749965440463,-406.88977384,0.00022191,4]
[365860547,1749965440472,-400.0,0.00022191,4]
[365860548,1749965440481,-460.0,0.00022191,4]
[365860549,1749965440490,-400.0,0.00022191,4]
[365860550,1749965440500,-403.54298025,0.00022191,4]
[365860551,1749965440510,-406.01360692,0.00022191,4]
[365860552,1749965440519,-460.0,0.00022191,4]
[365860554,1749965440531,-460.0,0.00022191,4]
[365860556,1749965440539,-400.0,0.00022191,4]
[365860558,1749965440549,-400.0,0.00022191,4]
[365860560,1749965440558,-679.06,0.00022191,4]
[365860562,1749965440570,-460.0,0.00022191,4]
[365860564,1749965440580,-400.0,0.00022191,4]
[365860566,1749965440589,-419.17462273,0.00022191,4]
[365860568,1749965440599,-400.0,0.00022191,4]
[365860570,1749965440609,-223.78708938,0.00022191,4]
[365860572,1749965440620,-400.0,0.00022191,4]
[365860574,1749965440628,-261.66163473,0.00022191,4]
[365860576,1749965440638,-460.0,0.00022191,4]
[365860578,1749965440648,-475.0,0.00022191,4]
[365860580,1749965440659,-460.0,0.00022191,4]
[365860582,1749965440668,-528.08,0.00022191,4]
[365860584,1749965440677,-400.0,0.00022191,4]
[365860586,1749965440686,-460.0,0.00022191,4]
[365860588,1749965440695,-151.0,0.00022191,7]
[365860590,1749965440705,-460.0,0.00022191,4]
[365860592,1749965440714,-460.0,0.00022191,2]
[365860594,1749965440723,-2374.76,0.00022191,4]
[365860596,1749965440733,-460.0,0.00022191,4]
[365860598,1749965440742,-420.0,0.00022191,4]
[365860600,1749965440751,-460.0,0.00022191,4]
[365860603,1749965440761,-630.61,0.00022191,4]
[365860605,1749965440772,-400.0,0.00022191,4]
[365860607,1749965440783,-400.0,0.00022191,4]
[365860609,1749965440793,-270.95536229,0.00022191,4]
[365860611,1749965440802,-400.0,0.00022191,4]
[365860613,1749965440812,-460.0,0.00022191,4]
[365860615,1749965440821,-460.0,0.00022191,4]
[365860617,1749965440831,-607.8042531,0.00022191,4]
[365860619,1749965440840,-547.35,0.00022191,4]
[365860621,1749965440849,-460.0,0.00022191,4]
[365860623,1749965440858,-460.0,0.00022191,4]
[365860625,1749965440868,-460.0,0.00022191,4]
[365860627,1749965440877,-460.0,0.00022191,4]
[365860629,1749965440886,-460.0,0.00022191,4]
[365860631,1749965440895,-460.0,0.00022191,4]
[365860633,1749965440904,-217.69284596,0.00022191,4]
[365860635,1749965440914,-400.0,0.00022191,4]
[365860637,1749965440923,-3923.17,0.00022191,4]
[365860639,1749965440932,-460.0,0.00022191,4]
[365860641,1749965440942,-460.0,0.00022191,4]
[365860643,1749965440951,-460.0,0.00022191,4]
[365860645,1749965440960,-460.0,0.00022191,4]
[365860647,1749965440970,-478.74,0.00022191,4]
[365860649,1749965440980,-660.76,0.00022191,4]
[365860651,1749965440989,-400.0,0.00022191,4]
[365860653,1749965440999,-400.0,0.00022191,4]
[365860655,1749965441008,-2793.04,0.00022191,4]
[365860657,1749965441017,-460.0,0.00022191,4]
[365860659,1749965441027,-460.0,0.00022191,4]
[365860661,1749965441036,-400.0,0.00022191,4]
[365860663,1749965441046,-437.83617497,0.00022191,4]
[365860665,1749965441055,-406.84384259,0.00022191,4]
[365860667,1749965441065,-501.76849079,0.00022191,4]
[365860669,1749965441076,-899.13,0.00022191,4]
[365860671,1749965441085,-700.57,0.00022191,4]
[365860673,1749965441095,-460.0,0.00022191,4]
[365860675,1749965441104,-1994.39,0.00022191,4]
[365860677,1749965441114,-229.91902117,0.00022191,4]
[365860679,1749965441123,-400.0,0.00022191,4]
[365860681,1749965441133,-460.0,0.00022191,4]
[365860683,1749965441142,-3483.91,0.00022191,4]
[365860685,1749965441151,-432.10048665,0.00022191,4]
[365860687,1749965441161,-400.0,0.00022191,4]
[365860689,1749965441170,-460.0,0.00022191,4]
[365860691,1749965441180,-460.0,0.00022191,4]
[365860693,1749965441191,-460.0,0.00022191,4]
[365860695,1749965441201,-460.0,0.00022191,4]
[365860697,1749965441210,-400.0,0.00022191,4]
[365860700,1749965441221,-460.0,0.00022191,4]
[365860701,1749965441231,-400.0,0.00022191,4]
[365860704,1749965441240,-460.0,0.00022191,4]
[365860706,1749965441250,-460.0,0.00022191,4]
[365860708,1749965441259,-400.0,0.00022191,4]
[365860710,1749965441268,-400.0,0.00022191,4]
[365860712,1749965441280,-1205.3,0.00022191,4]
[365860714,1749965441289,-169.11229336,0.00022191,4]
[365860716,1749965441298,-400.0,0.00022191,4]
[365860718,1749965441307,-1481.15,0.00022191,4]
[365860720,1749965441316,-598.0,0.00022191,4]
[365860722,1749965441325,-460.0,0.00022191,4]
[365860724,1749965441335,-1506.96,0.00022191,4]
[365860726,1749965441343,-460.0,0.00022191,4]
[365860728,1749965441352,-788.51,0.00022191,4]
[365860730,1749965441361,-460.0,0.00022191,4]
[365860732,1749965441372,-460.0,0.00022191,4]
[365860734,1749965441382,-460.0,0.00022191,4]
[365860736,1749965441392,-460.0,0.00022191,4]
[365860738,1749965441402,-460.0,0.00022191,4]
[365860740,1749965441412,-460.0,0.00022191,4]
[365860742,1749965441421,-460.0,0.00022191,4]
[365860744,1749965441431,-460.0,0.00022191,4]
[365860745,1749965441440,-460.0,0.00022191,4]
[365860748,1749965441449,-460.0,0.00022191,4]
[365860750,1749965441459,-584.31,0.00022191,4]
[365860752,1749965441468,-460.0,0.00022191,4]
[365860754,1749965441477,-400.0,0.00022191,4]
[365860755,1749965441486,-168.43747425,0.00022191,4]
[365860758,1749965441495,-460.0,0.00022191,4]
[365860760,1749965441505,-474.67,0.00022191,4]
[365860762,1749965441514,-460.0,0.00022191,4]
[365860764,1749965441523,-481.67,0.00022191,4]
[365860766,1749965441534,-400.0,0.00022191,4]
[365860767,1749965441543,-460.0,0.00022191,4]
[365860769,1749965441552,-523.01,0.00022191,4]
[365860771,1749965441561,-478.75,0.00022191,4]
[365860773,1749965441575,-400.0,0.00022191,4]
[365860776,1749965441585,-460.0,0.00022191,4]
[365860778,1749965441594,-400.0,0.00022191,4]
[365860780,1749965441603,-151.0,0.00022191,7]
[365860782,1749965441613,-151.0,0.00022191,7]
[365860784,1749965441623,-383.31105908,0.00022191,4]
[365860786,1749965441632,-460.0,0.00022191,4]
[365860788,1749965441641,-151.0,0.00022191,7]
[365860790,1749965441650,-151.0,0.00022191,7]
[365860792,1749965441660,-460.0,0.00022191,4]
[365860794,1749965441670,-400.0,0.00022191,4]
[365860796,1749965441679,-1041.44,0.00022191,4]
[365860798,1749965441688,-460.0,0.00022191,4]
[365860800,1749965441698,-400.0,0.00022191,4]
[365860802,1749965441706,-460.0,0.00022191,4]
[365860804,1749965441718,-400.0,0.00022191,4]
[365860806,1749965441729,-460.0,0.00022191,4]
[365860808,1749965441742,-460.0,0.00022191,4]
[365860810,1749965441753,-460.0,0.00022191,4]
[365860812,1749965441764,-460.0,0.00022191,4]
[365860814,1749965441774,-460.0,0.00022191,4]
[365860816,1749965441784,-460.0,0.00022191,4]
[365860818,1749965441793,-1646.48,0.00022191,4]
[365860820,1749965441803,-460.0,0.00022191,4]
[365860822,1749965441813,-710.68,0.00022191,4]
[365860824,1749965441823,-400.0,0.00022191,4]
[365860826,1749965441833,-1919.93,0.00022191,4]
[365860828,1749965441842,-460.0,0.00022191,4]
[365860830,1749965441852,-199.92550362,0.00022191,4]
[365860832,1749965441861,-2386.94,0.00022191,4]
[365860834,1749965441870,-460.0,0.00022191,4]
[365860836,1749965441880,-151.0,0.00022191,7]
[365860838,1749965441889,-460.0,0.00022191,4]
[365860840,1749965441898,-400.0,0.00022191,4]
[365860843,1749965441908,-1492.07,0.00022191,4]
[365860845,1749965441917,-460.0,0.00022191,4]
[365860847,1749965441927,-460.0,0.00022191,4]
[365860849,1749965441937,-460.0,0.00022191,4]
[365860851,1749965441946,-430.0,0.00022191,4]
[365860853,1749965441956,-400.0,0.00022191,4]
[365860855,1749965441966,-430.0,0.00022191,4]
[365860857,1749965441975,-460.0,0.00022191,4]
[365860859,1749965441984,-460.0,0.00022191,4]
[365860860,1749965441994,-460.0,0.00022191,4]
[365860862,1749965442003,-460.0,0.00022191,4]
[365860864,1749965442012,-2543.19,0.00022191,4]
[365860867,1749965442022,-151.0,0.00022191,7]
[365860869,1749965442032,-460.0,0.00022191,4]
[365860870,1749965442041,-460.0,0.00022191,4]
[365860872,1749965442050,-460.0,0.00022191,4]
[365860875,1749965442060,-460.0,0.00022191,4]
[365860876,1749965442070,-620.25,0.00022191,4]
[365860882,1749965442111,-460.0,0.00022191,4]
[365860884,1749965442120,-460.0,0.00022191,4]
[365860886,1749965442130,-400.32668542,0.00022191,4]
[365860888,1749965442139,-460.0,0.00022191,4]
[365860890,1749965442148,-409.75804372,0.00022191,4]
[365860892,1749965442158,-460.0,0.00022191,4]
[365860894,1749965442167,-565.65,0.00022191,4]
[365860896,1749965442176,-460.0,0.00022191,4]
[365860898,1749965442185,-400.0,0.00022191,4]
[365860900,1749965442195,-400.0,0.00022191,4]
[365860902,1749965442204,-153.308803,0.00022191,7]
[365860904,1749965442213,-153.308803,0.00022191,7]
[365860906,1749965442222,-390.0,0.00022191,4]
[365860908,1749965442231,-400.0,0.00022191,4]
[365860910,1749965442241,-1706.09,0.00022191,4]
[365860912,1749965442250,-153.308803,0.00022191,7]
[365860914,1749965442259,-153.308803,0.00022191,7]
[365860916,1749965442268,-168.04279203,0.00022191,4]
[365860918,1749965442279,-1028.16,0.00022191,4]
[365860920,1749965442288,-460.0,0.00022191,4]
[365860922,1749965442297,-197.5847232,0.00022252,2]
[365860924,1749965442307,-427.17959955,0.00022276,2]
[365860926,1749965442316,-757.01,0.00022278,5]
[365860928,1749965442326,-1693.2998215,0.00022314,7]
[365860930,1749965442335,-333.88542468,0.00022359,2]
[365860932,1749965442344,-424.47602138,0.00022373,2]
[365860934,1749965442354,-12535.62630729,0.00022373,2]
[365860936,1749965442364,-213.32089821,0.00022373,2]
[365860938,1749965442373,-757.01,0.00022378,7]
[365860940,1749965442383,-168.0,0.00022383,2]
[365860942,1749965442392,-151.0,0.00022413,7]
[365860944,1749965442402,-151.0,0.00022413,7]
[365860946,1749965442414,-1693.2998215,0.00022452,7]
[365860948,1749965442423,-3482.78,0.00022463,4]
[365860950,1749965442432,-260.51832066,0.00022464,2]
[365860952,1749965442442,-460.0,0.00022464,4]
[365860954,1749965442451,-3819.55,0.00022464,4]
[365860956,1749965442461,-3482.78,0.00022464,4]
[365860958,1749965442470,-3482.78,0.00022464,4]
[365860960,1749965442479,-3482.78,0.00022464,4]
[365860963,1749965442488,-1587.03,0.00022464,4]
[365860965,1749965442498,-460.0,0.00022464,4]
[365860967,1749965442507,-460.0,0.00022464,4]
[365860969,1749965442516,-151.0,0.00022465,7]
[365860970,1749965442525,-151.0,0.00022465,7]
[365860973,1749965442537,-151.0,0.00022465,7]
[365860974,1749965442546,-152.123734,0.00022465,7]
[365860977,1749965442555,-151.0,0.00022465,7]
[365860979,1749965442567,-460.0,0.00022465,4]
[365860981,1749965442577,-151.0,0.00022465,7]
[365860983,1749965442586,-460.0,0.00022465,4]
[365860985,1749965442595,-460.0,0.00022465,4]
[365860986,1749965442604,-151.0,0.00022465,7]
[365860989,1749965442615,-151.0,0.00022465,7]
[365860991,1749965442624,-579.19493693,0.00022465,4]
[365860993,1749965442634,-186.724186,0.00022465,2]
[365860995,1749965442646,-151.0,0.00022465,7]
[365860997,1749965442656,-186.724186,0.00022465,2]
[365860999,1749965442665,-253.11793331,0.00022465,4]
[365861001,1749965442674,-460.0,0.00022465,4]
[365861003,1749965442683,-460.0,0.00022465,4]
[365861005,1749965442691,-460.0,0.00022465,4]
[365861007,1749965442700,-314.8338154,0.00022465,4]
[365861009,1749965442709,-286.73683971,0.00022465,4]
[365861011,1749965442719,-460.0,0.00022465,4]
[365861013,1749965442728,-460.0,0.00022465,4]
[365861015,1749965442737,-460.0,0.00022465,4]
[365861017,1749965442746,-460.0,0.00022465,4]
[365861019,1749965442755,-350.0,0.00022465,4]
[365861021,1749965442764,-613.75,0.00022465,4]
[365861023,1749965442774,-582.87,0.00022465,4]
[365861025,1749965442784,-227.68912942,0.00022465,4]
[365861027,1749965442793,-460.0,0.00022465,4]
[365861029,1749965442802,-460.0,0.00022465,4]
[365861031,1749965442811,-826.12,0.00022465,4]
[365861033,1749965442821,-460.0,0.00022465,4]
[365861035,1749965442830,-460.0,0.00022465,4]
[365861037,1749965442839,-460.0,0.00022465,4]
[365861039,1749965442850,-460.0,0.00022465,4]
[365861041,1749965442859,-420.0,0.00022465,4]
[365861043,1749965442869,-679.06,0.00022465,4]
[365861045,1749965442879,-460.0,0.00022465,4]
[365861048,1749965442889,-420.0,0.00022465,4]
[365861050,1749965442899,-382.27558329,0.00022465,4]
[365861052,1749965442908,-460.0,0.00022465,4]
[365861054,1749965442919,-460.0,0.00022465,4]
[365861056,1749965442928,-460.0,0.00022465,2]
[365861058,1749965442938,-2374.76,0.00022465,4]
[365861060,1749965442948,-460.0,0.00022465,4]
[365861062,1749965442958,-460.0,0.00022465,4]
[365861064,1749965442967,-630.61,0.00022465,4]
[365861065,1749965442977,-460.0,0.00022465,4]
[365861066,1749965442987,-460.0,0.00022465,4]
[365861067,1749965442997,-547.35,0.00022465,4]
[365861068,1749965443006,-460.0,0.00022465,4]
[365861069,1749965443016,-460.0,0.00022465,4]
[365861070,1749965443026,-460.0,0.00022465,4]
[365861071,1749965443036,-460.0,0.00022465,4]
[365861073,1749965443045,-400.0,0.00022465,4]
[365861075,1749965443055,-460.0,0.00022465,4]
[365861077,1749965443064,-3923.17,0.00022465,4]
[365861079,1749965443074,-460.0,0.00022465,4]
[365861081,1749965443083,-495.33152296,0.00022465,4]
[365861083,1749965443093,-460.0,0.00022465,4]
[365861085,1749965443103,-420.0,0.00022465,4]
[365861088,1749965443112,-478.74,0.00022465,4]
[365861090,1749965443122,-660.76,0.00022465,4]
[365861092,1749965443131,-2793.04,0.00022465,4]
[365861094,1749965443142,-440.0,0.00022465,4]
[365861096,1749965443151,-214.76156487,0.00022465,4]
[365861098,1749965443160,-899.13,0.00022465,4]
[365861100,1749965443169,-700.57,0.00022465,4]
[365861102,1749965443179,-460.0,0.00022465,4]
[365861104,1749965443188,-1994.39,0.00022465,4]
[365861106,1749965443197,-460.0,0.00022465,4]
[365861108,1749965443207,-3483.91,0.00022465,4]
[365861110,1749965443216,-460.0,0.00022465,4]
[365861112,1749965443225,-460.0,0.00022465,4]
[365861114,1749965443234,-360.0,0.00022465,4]
[365861116,1749965443244,-460.0,0.00022465,4]
[365861118,1749965443253,-263.76986465,0.00022465,4]
[365861120,1749965443262,-299.33911353,0.00022465,4]
[365861122,1749965443272,-460.0,0.00022465,4]
[365861124,1749965443282,-1205.3,0.00022465,4]
[365861126,1749965443291,-1481.15,0.00022465,4]
[365861128,1749965443300,-598.0,0.00022465,4]
[365861130,1749965443310,-460.0,0.00022465,4]
[365861132,1749965443319,-1506.96,0.00022465,4]
[365861134,1749965443329,-460.0,0.00022465,4]
[365861136,1749965443339,-788.51,0.00022465,4]
[365861138,1749965443349,-460.0,0.00022465,4]
[365861140,1749965443359,-460.0,0.00022465,4]
[365861142,1749965443368,-460.0,0.00022465,4]
[365861144,1749965443378,-460.0,0.00022465,4]
[365861146,1749965443388,-460.0,0.00022465,4]
[365861148,1749965443398,-378.77042877,0.00022465,4]
[365861150,1749965443407,-460.0,0.00022465,4]
[365861153,1749965443417,-370.0,0.00022465,4]
[365861155,1749965443427,-460.0,0.00022465,4]
[365861157,1749965443436,-460.0,0.00022465,4]
[365861159,1749965443446,-584.31,0.00022465,4]
[365861161,1749965443455,-460.0,0.00022465,4]
[365861163,1749965443465,-460.0,0.00022465,4]
[365861165,1749965443475,-474.67,0.00022465,4]
[365861168,1749965443484,-460.0,0.00022465,4]
[365861170,1749965443494,-481.67,0.00022465,4]
[365861172,1749965443503,-420.0,0.00022465,4]
[365861174,1749965443512,-212.407922,0.00022465,7]
[365861176,1749965443522,-523.01,0.00022465,4]
[365861178,1749965443533,-212.407922,0.00022465,7]
[365861180,1749965443542,-478.75,0.00022465,4]
[365861182,1749965443552,-460.0,0.00022465,4]
[365861184,1749965443562,-151.0,0.00022465,7]
[365861186,1749965443575,-370.0,0.00022465,4]
[365861188,1749965443585,-151.0,0.00022465,7]
[365861190,1749965443594,-264.71250145,0.00022465,4]
[365861192,1749965443605,-1041.44,0.00022465,4]
[365861193,1749965443615,-348.58803234,0.00022465,4]
[365861196,1749965443625,-460.0,0.00022465,4]
[365861198,1749965443635,-343.45204961,0.00022465,4]
[365861200,1749965443645,-460.0,0.00022465,4]
[365861202,1749965443655,-460.0,0.00022465,4]
[365861204,1749965443665,-460.0,0.00022465,4]
[365861206,1749965443675,-460.0,0.00022465,4]
[365861208,1749965443685,-476.72,0.00022465,4]
[365861210,1749965443694,-1646.48,0.00022465,4]
[365861212,1749965443704,-460.0,0.00022465,4]
[365861214,1749965443714,-710.68,0.00022465,4]
[365861216,1749965443726,-1919.93,0.00022465,4]
[365861218,1749965443735,-460.0,0.00022465,4]
[365861221,1749965443745,-2386.94,0.00022465,4]
[365861223,1749965443755,-402.83896586,0.00022465,4]
[365861225,1749965443765,-151.0,0.00022465,7]
[365861227,1749965443775,-460.0,0.00022465,4]
[365861229,1749965443784,-1492.07,0.00022465,4]
[365861231,1749965443794,-460.0,0.00022465,4]
[365861233,1749965443803,-460.0,0.00022465,4]
[365861235,1749965443813,-460.0,0.00022465,4]
[365861237,1749965443823,-460.0,0.00022465,4]
[365861239,1749965443834,-389.25462796,0.00022465,4]
[365861241,1749965443843,-460.0,0.00022465,4]
[365861243,1749965443853,-460.0,0.00022465,4]
[365861245,1749965443862,-2543.19,0.00022465,4]
[365861247,1749965443872,-460.0,0.00022465,4]
[365861249,1749965443882,-460.0,0.00022465,4]
[365861251,1749965443892,-310.0,0.00022465,4]
[365861252,1749965443901,-460.0,0.00022465,4]
[365861253,1749965443912,-400.0,0.00022465,4]
[365861254,1749965443922,-620.25,0.00022465,4]
[365861255,1749965443931,-403.51486158,0.00022465,4]
[365861256,1749965443941,-460.0,0.00022465,4]
[365861257,1749965443950,-578.59671348,0.00022465,4]
[365861258,1749965443960,-565.65,0.00022465,4]
[365861259,1749965443970,-460.0,0.00022465,4]
[365861260,1749965443980,-153.308803,0.00022465,7]
[365861261,1749965443989,-1706.09,0.00022465,4]
[365861262,1749965443999,-153.308803,0.00022465,7]
[365861263,1749965444009,-845.25843836,0.00022466,2]
[365861264,1749965444019,-160.0,0.00022466,2]
[365861265,1749965444029,-835.55256958,0.00022466,2]
[365861266,1749965444039,-160.0,0.00022466,2]
[365861267,1749965444049,-757.01,0.00022478,4]
[365861268,1749965444059,-327.0,0.000225,2]
[365861269,1749965444068,-1002.19931956,0.000225,2]
[365861270,1749965444078,-168.0,0.00022511,2]
[365861271,1749965444088,-1018.96624797,0.00022521,2]
[365861272,1749965444099,-1000.0,0.00022521,2]
[365861273,1749965444109,-1006.96582777,0.00022521,2]
[365861274,1749965444119,-1002.75230945,0.00022521,2]
[365861275,1749965444129,-515.32426376,0.00022521,2]
[365861276,1749965444139,-509.50549555,0.00022521,2]
[365861277,1749965444149,-151.0,0.00022556,7]
[365861278,1749965444160,-168.0,0.00022556,2]
[365861279,1749965444171,-757.01,0.00022578,4]
[365861280,1749965444180,-1693.2998215,0.0002259,7]
[365861281,1749965444190,-158.200928,0.0002259,7]
[365861282,1749965444200,-158.200928,0.0002259,7]
[365861283,1749965444210,-333.88542468,0.00022629,2]
[365861284,1749965444220,-757.01,0.00022678,3]
[365861285,1749965444230,-197.5847232,0.00022697,2]
[365861286,1749965444240,-168.0,0.0002271,2]
[365861287,1749965444250,-1001.93465393,0.00022721,2]
[365861288,1749965444260,-151.0,0.00022721,7]
[365861289,1749965444270,-151.0,0.00022721,7]
[365861290,1749965444280,-3482.78,0.00022727,4]
[365861291,1749965444289,-3482.78,0.00022727,4]
[365861292,1749965444299,-3482.78,0.00022727,4]
[365861293,1749965444308,-3482.78,0.00022727,4]
[365861294,1749965444318,-3482.92,0.00022727,4]
[365861295,1749965444327,-1693.2998215,0.00022728,7]
[365861296,1749965444338,-400.0,0.00022738,4]
[365861297,1749965444347,-3819.55,0.00022738,4]
[365861298,1749965444357,-1587.03,0.00022738,4]
[365861299,1749965444367,-460.0,0.00022738,4]
[365861300,1749965444376,-460.0,0.00022738,4]
[365861301,1749965444386,-151.0,0.00022738,7]
[365861302,1749965444395,-153.308803,0.00022738,7]
[365861303,1749965444405,-153.308803,0.00022738,7]
[365861304,1749965444415,-151.0,0.00022739,7]
[365861305,1749965444425,-151.0,0.00022739,7]
[365861306,1749965444434,-151.0,0.00022739,7]
[365861307,1749965444443,-151.0,0.00022739,7]
[365861308,1749965444453,-151.0,0.00022739,7]
[365861309,1749965444462,-151.0,0.00022739,7]
[365861310,1749965444471,-154.185041,0.00022739,7]
[365861311,1749965444481,-460.0,0.00022739,4]
[365861312,1749965444490,-151.0,0.00022739,7]
[365861313,1749965444499,-460.0,0.00022739,4]
[365861314,1749965444509,-460.0,0.00022739,4]
[365861315,1749965444519,-151.0,0.00022739,7]
[365861316,1749965444529,-151.0,0.00022739,7]
[365861317,1749965444539,-151.0,0.00022739,7]
[365861318,1749965444549,-281.137993,0.00022739,7]
[365861319,1749965444559,-186.724186,0.00022739,2]
[365861320,1749965444572,-151.0,0.00022739,7]
[365861321,1749965444581,-186.724186,0.00022739,2]
[365861322,1749965444590,-460.0,0.00022739,4]
[365861323,1749965444600,-460.0,0.00022739,4]
[365861324,1749965444610,-460.0,0.00022739,4]
[365861325,1749965444620,-460.0,0.00022739,4]
[365861326,1749965444630,-460.0,0.00022739,4]
[365861327,1749965444641,-460.0,0.00022739,4]
[365861328,1749965444650,-460.0,0.00022739,4]
[365861329,1749965444659,-613.75,0.00022739,4]
[365861330,1749965444669,-582.87,0.00022739,4]
[365861331,1749965444678,-460.0,0.00022739,4]
[365861332,1749965444688,-460.0,0.00022739,4]
[365861333,1749965444697,-826.12,0.00022739,4]
[365861334,1749965444707,-354.28826946,0.00022739,4]
[365861335,1749965444717,-460.0,0.00022739,4]
[365861336,1749965444726,-329.57692072,0.00022739,4]
[365861337,1749965444736,-310.0,0.00022739,4]
[365861338,1749965444745,-679.06,0.00022739,4]
[365861339,1749965444755,-370.0,0.00022739,4]
[365861340,1749965444765,-370.0,0.00022739,4]
[365861341,1749965444774,-340.0,0.00022739,4]
[365861342,1749965444786,-460.0,0.00022739,2]
[365861343,1749965444795,-2374.76,0.00022739,4]
[365861344,1749965444805,-460.0,0.00022739,4]
[365861345,1749965444815,-460.0,0.00022739,4]
[365861346,1749965444826,-630.61,0.00022739,4]
[365861347,1749965444836,-420.0,0.00022739,4]
[365861348,1749965444845,-460.0,0.00022739,4]
[365861349,1749965444855,-547.35,0.00022739,4]
[365861350,1749965444865,-460.0,0.00022739,4]
[365861351,1749965444875,-466.01447911,0.00022739,4]
[365861352,1749965444885,-460.0,0.00022739,4]